bitfinex-derivatives/quotes_BTCF0:USTF0_20250514
["timestamp","ask_amount","ask_price","bid_price","bid_amount"]
[1747266526309,0.88779625,103620.0,103610.0,0.84644255]
[1747266526603,1.08076085,103620.0,103610.0,0.84644255]
[1747266526797,1.00692926,103620.0,103610.0,0.84644255]
[1747266528204,1.04002926,103620.0,103610.0,0.84644255]
[1747266528506,1.04002926,103620.0,103610.0,0.7594975]
[1747266529206,1.04002926,103620.0,103610.0,0.84644255]
[1747266529207,1.04564997,103620.0,103610.0,0.84644255]
[1747266529403,1.04564997,103620.0,103610.0,0.7594975]
[1747266529597,1.04564997,103620.0,103610.0,0.84644255]
[1747266530304,1.04002926,103620.0,103610.0,0.7594975]
[1747266530507,1.07002926,103620.0,103610.0,0.7594975]
[1747266531403,1.07564997,103620.0,103610.0,0.7594975]
[1747266532107,1.23764997,103620.0,103610.0,0.7594975]
[1747266533206,1.07564997,103620.0,103610.0,0.7594975]
[1747266535110,1.23764997,103620.0,103610.0,0.7594975]
[1747266535312,1.32459502,103620.0,103610.0,0.7290975]
[1747266535700,1.68539502,103620.0,103610.0,0.3356975]
[1747266536011,1.77234007,103620.0,103610.0,0.3356975]
[1747266536205,1.68539502,103620.0,103610.0,0.3356975]
[1747266536705,1.77234007,103620.0,103610.0,0.3356975]
[1747266536901,1.68539502,103620.0,103610.0,0.3356975]
[1747266539508,1.00499502,103620.0,103610.0,0.3356975]
[1747266540433,1.16767753,103620.0,103610.0,0.3356975]
[1747266541014,0.80687753,103620.0,103610.0,0.6964975]
[1747266541212,0.80687753,103620.0,103610.0,0.3356975]
[1747266542113,1.16767753,103620.0,103610.0,0.3356975]
[1747266544917,1.12779515,103620.0,103610.0,0.3356975]
[1747266545114,1.00499502,103620.0,103610.0,0.3356975]
[1747266546417,0.99937431,103620.0,103610.0,0.3356975]
[1747266547419,1.00499502,103620.0,103610.0,0.3356975]
[1747266548014,0.55724997,103620.0,103610.0,0.3356975]
[1747266548214,0.55724997,103620.0,103610.0,0.48674255]
[1747266548422,0.55162926,103620.0,103610.0,0.84754255]
[1747266549121,0.38962926,103620.0,103610.0,0.84754255]
[1747266549322,0.32652926,103620.0,103610.0,0.84754255]
[1747266549806,0.35712926,103620.0,103610.0,0.84754255]
[1747266551507,0.35712926,103620.0,103610.0,0.7605975]
[1747266552022,0.35712926,103620.0,103610.0,0.84754255]
[1747266552716,0.32652926,103620.0,103610.0,0.84754255]
[1747266553519,0.13356466,103620.0,103610.0,0.84754255]
[1747266553718,0.29542926,103620.0,103610.0,0.84754255]
[1747266555613,0.30104997,103620.0,103610.0,0.84754255]
[1747266556523,0.30104997,103620.0,103610.0,0.7605975]
[1747266558134,0.37485571,103620.0,103610.0,0.7605975]
[1747266559521,0.37485571,103620.0,103610.0,0.3997975]
[1747266559726,0.37485571,103620.0,103610.0,0.7605975]
[1747266564430,0.37485571,103620.0,103610.0,0.3997975]
[1747266564626,0.37485571,103620.0,103610.0,0.7605975]
[1747266567031,0.46180076,103620.0,103610.0,0.7605975]
[1747266567234,0.52390076,103620.0,103610.0,0.7605975]
[1747266567933,0.49190076,103620.0,103610.0,0.7605975]
[1747266568728,0.40495571,103620.0,103610.0,0.7605975]
[1747266572439,0.40495571,103620.0,103610.0,0.84754255]
[1747266574331,0.43535571,103620.0,103610.0,0.84754255]
[1747266574630,0.40495571,103620.0,103610.0,0.84754255]
[1747266575034,0.40495571,103620.0,103610.0,0.7605975]
[1747266578645,0.43605571,103620.0,103610.0,0.7605975]
[1747266579544,0.21199111,103620.0,103610.0,0.84754255]
[1747266579741,0.18189111,103620.0,103610.0,0.84754255]
[1747266580042,0.1762704,103620.0,103610.0,0.84754255]
[1747266580243,0.369235,103620.0,103610.0,0.84754255]
[1747266580541,0.369235,103620.0,103610.0,0.7605975]
[1747266580748,0.45618005,103620.0,103610.0,0.7605975]
[1747266580945,0.43925571,103620.0,103610.0,0.84754255]
[1747266581247,0.21379111,103620.0,103610.0,0.84754255]
[1747266581839,0.40675571,103620.0,103610.0,0.84754255]
[1747266582042,0.21379111,103620.0,103610.0,0.84754255]
[1747266582557,0.40675571,103620.0,103610.0,0.7605975]
[1747266583947,0.21379111,103620.0,103610.0,0.7605975]
[1747266584143,0.18189111,103620.0,103610.0,0.84754255]
[1747266584349,0.18189111,103620.0,103610.0,0.88754255]
[1747266584744,0.18189111,103620.0,103610.0,1.1863676]
[1747266585047,0.1762704,103620.0,103610.0,1.09942255]
[1747266585249,0.1722704,103620.0,103610.0,2.76142255]
[1747266586050,0.1722704,103620.0,103610.0,2.76242255]
[1747266587134,0.1722704,103620.0,103610.0,2.60042255]
[1747266587339,0.1722704,103620.0,103610.0,2.60142255]
[1747266587849,0.1722704,103620.0,103610.0,2.5144775]
[1747266588050,0.00562071,103620.0,103610.0,2.60142255]
[1747266588553,0.00562071,103620.0,103610.0,2.5144775]
[1747266588742,0.00562071,103620.0,103610.0,2.60142255]
[1747266589050,0.00562071,103620.0,103610.0,2.80866255]
[1747266590450,0.00562071,103620.0,103610.0,2.80766255]
[1747266590749,0.00562071,103620.0,103610.0,3.16846255]
[1747266591245,0.00562071,103620.0,103610.0,3.16746255]
[1747266592246,0.00562071,103620.0,103610.0,2.44586255]
[1747266592452,0.00562071,103620.0,103610.0,3.16746255]
[1747266592751,0.00562071,103620.0,103610.0,2.44586255]
[1747266592957,0.00562071,103620.0,103610.0,3.16746255]
[1747266597651,0.00562071,103620.0,103610.0,2.74834255]
[1747266597954,0.00562071,103620.0,103610.0,1.24834255]
[1747266598456,0.00562071,103620.0,103610.0,2.74834255]
[1747266600550,0.00562071,103620.0,103610.0,2.6613975]
[1747266600945,0.00562071,103620.0,103610.0,2.74834255]
[1747266601352,1.12869689,103630.0,103620.0,0.1929646]
[1747266601543,1.12869689,103630.0,103620.0,0.6162646]
[1747266602154,1.09775079,103630.0,103620.0,0.7127664]
[1747266602655,1.01080574,103630.0,103620.0,0.7428664]
[1747266602958,1.01280574,103630.0,103620.0,0.7428664]
[1747266603556,1.01480574,103630.0,103620.0,0.7428664]
[1747266605558,1.20775174,103630.0,103620.0,0.7428664]
[1747266608645,1.29469679,103630.0,103620.0,0.1276018]
[1747266609261,1.29469679,103630.0,103620.0,0.0965018]
[1747266609851,1.59300184,103630.0,103620.0,0.0965018]
[1747266610056,1.50605679,103630.0,103620.0,0.0965018]
[1747266610349,1.50605679,103630.0,103620.0,0.2894664]
[1747266612763,1.50605679,103630.0,103620.0,0.3216664]
[1747266614659,0.85031571,103630.0,103620.0,0.3216664]
[1747266614863,0.76337066,103630.0,103620.0,0.3216664]
[1747266615165,0.85031571,103630.0,103620.0,0.3216664]
[1747266615767,0.76337066,103630.0,103620.0,0.3216664]
[1747266615965,0.85031571,103630.0,103620.0,0.3216664]
[1747266617269,0.85031571,103630.0,103620.0,0.1287018]
[1747266617452,0.85031571,103630.0,103620.0,0.3216664]
[1747266618066,0.85031571,103630.0,103620.0,0.1287018]
[1747266618766,0.85031571,103630.0,103620.0,0.3216664]
[1747266620565,0.85593642,103630.0,103620.0,0.1287018]
[1747266623565,1.51580147,103630.0,103620.0,0.0965018]
[1747266628279,1.49307415,103630.0,103620.0,0.0965018]
[1747266629974,0.1929646,103620.0,103610.0,0.0325]
[1747266630274,0.89690965,103620.0,103610.0,0.1290018]
[1747266630488,0.89690965,103620.0,103610.0,0.1618018]
[1747266631976,0.89690965,103620.0,103610.0,0.1932018]
[1747266632771,0.90090965,103620.0,103610.0,0.1932018]
[1747266635978,0.90653036,103620.0,103610.0,0.1932018]
[1747266637375,0.54573036,103620.0,103610.0,0.1932018]
[1747266637577,0.90653036,103620.0,103610.0,0.1932018]
[1747266637771,0.99164415,103620.0,103610.0,0.1932018]
[1747266638174,1.0785892,103620.0,103610.0,0.1932018]
[1747266639279,0.99164415,103620.0,103610.0,0.1932018]
[1747266639582,1.0785892,103620.0,103610.0,0.1932018]
[1747266642382,0.99164415,103620.0,103610.0,0.1932018]
[1747266642573,1.16553425,103620.0,103610.0,0.1932018]
[1747266643183,1.0785892,103620.0,103610.0,0.1932018]
[1747266646787,1.0048497,103620.0,103610.0,0.1932018]
[1747266650187,0.91790465,103620.0,103610.0,0.1932018]
[1747266650576,1.0048497,103620.0,103610.0,0.1932018]
[1747266652893,0.6440497,103620.0,103610.0,0.1932018]
[1747266653084,0.91790465,103620.0,103610.0,0.1932018]
[1747266653285,1.0048497,103620.0,103610.0,0.1932018]
[1747266653994,0.6440497,103620.0,103610.0,0.1932018]
[1747266654993,1.0048497,103620.0,103610.0,0.1932018]
[1747266655494,0.6440497,103620.0,103610.0,0.1932018]
[1747266658286,0.80673203,103620.0,103610.0,0.1932018]
[1747266658787,0.71978698,103620.0,103610.0,0.1932018]
[1747266658998,0.80673203,103620.0,103610.0,0.1932018]
[1747266660295,0.89367708,103620.0,103610.0,0.1932018]
[1747266660594,0.80673203,103620.0,103610.0,0.1932018]
[1747266663401,0.6440497,103620.0,103610.0,0.1932018]
[1747266665502,0.55710465,103620.0,103610.0,0.1290018]
[1747266665690,0.73099475,103620.0,103610.0,0.1615018]
[1747266666293,0.73099475,103620.0,103610.0,0.1941018]
[1747266666697,0.73099475,103620.0,103610.0,0.1615018]
[1747266667087,0.6440497,103620.0,103610.0,0.1615018]
[1747266667288,0.76684983,103620.0,103610.0,0.1615018]
[1747266667500,0.97788983,103620.0,103610.0,0.1615018]
[1747266670598,1.06483488,103620.0,103610.0,0.1615018]
[1747266672403,1.10471725,103620.0,103610.0,0.1615018]
[1747266673591,1.0177722,103620.0,103610.0,0.1615018]
[1747266673791,1.0177722,103620.0,103610.0,0.1935018]
[1747266676903,0.8550897,103620.0,103610.0,0.1935018]
[1747266677302,0.76814465,103620.0,103610.0,0.1935018]
[1747266677501,0.6440497,103620.0,103610.0,0.1935018]
[1747266682506,0.73099475,103620.0,103610.0,0.1615018]
[1747266684704,1.09179475,103620.0,103610.0,0.1290018]
[1747266685294,1.25447746,103620.0,103610.0,0.1290018]
[1747266688807,1.08058736,103620.0,103610.0,0.1290018]
[1747266689011,1.25447746,103620.0,103610.0,0.1290018]
[1747266690004,1.30366864,103620.0,103610.0,0.1290018]
[1747266692511,0.94286864,103620.0,103610.0,0.1290018]
[1747266692711,1.30366864,103620.0,103610.0,0.1599018]
[1747266694213,1.15615812,103620.0,103610.0,0.1599018]
[1747266695512,1.06921307,103620.0,103610.0,0.1599018]
[1747266697016,1.15615812,103620.0,103610.0,0.1599018]
[1747266698314,0.85489307,103620.0,103610.0,0.5207018]
[1747266698816,0.64039236,103620.0,103610.0,0.5207018]
[1747266699015,0.64039236,103620.0,103610.0,0.5517018]
[1747266699216,0.47839236,103620.0,103610.0,0.5517018]
[1747266699812,0.48401307,103620.0,103610.0,0.5517018]
[1747266701220,0.54246076,103620.0,103610.0,0.5517018]
[1747266701407,0.54246076,103620.0,103610.0,0.1909018]
[1747266705123,0.70446076,103620.0,103610.0,0.1909018]
[1747266705524,0.73536076,103620.0,103610.0,0.1909018]
[1747266706120,0.76746076,103620.0,103610.0,0.1909018]
[1747266706521,1.21520581,103620.0,103610.0,0.1909018]
[1747266707823,0.85440581,103620.0,103610.0,0.1909018]
[1747266708021,1.21520581,103620.0,103610.0,0.1290018]
[1747266709725,1.15675958,103620.0,103610.0,0.1290018]
[1747266710326,1.15675958,103620.0,103610.0,0.1602018]
[1747266714221,0.79595958,103620.0,103610.0,0.1602018]
[1747266714519,1.15675958,103620.0,103610.0,0.1602018]
[1747266717229,1.5137501,103620.0,103610.0,0.1602018]
[1747266719831,1.42680505,103620.0,103610.0,0.1602018]
[1747266721630,1.33986,103620.0,103610.0,0.1602018]
[1747266721824,1.42680505,103620.0,103610.0,0.1602018]
[1747266722036,0.85652505,103620.0,103610.0,0.1916018]
[1747266722324,1.21732505,103620.0,103610.0,0.1916018]
[1747266722526,1.27502,103620.0,103610.0,0.1916018]
[1747266722729,1.36196505,103620.0,103610.0,0.1916018]
[1747266722931,0.76172505,103620.0,103610.0,0.1916018]
[1747266723235,0.96944505,103620.0,103610.0,0.1916018]
[1747266723434,0.8825,103620.0,103610.0,0.384585]
[1747266723634,0.96944505,103620.0,103610.0,0.1916018]
[1747266724138,0.80744505,103620.0,103610.0,0.1916018]
[1747266724433,0.7205,103620.0,103610.0,0.1916018]
[1747266724640,0.80744505,103620.0,103610.0,0.1916018]
[1747266725641,0.65993453,103620.0,103610.0,0.1916018]
[1747266727842,0.57298948,103620.0,103610.0,0.1916018]
[1747266728052,0.65993453,103620.0,103610.0,0.1916018]
[1747266728540,0.69173453,103620.0,103610.0,0.1916018]
[1747266729636,0.48401453,103620.0,103610.0,0.1916018]
[1747266729843,0.48401453,103620.0,103610.0,0.384585]
[1747266730030,0.45221453,103620.0,103610.0,0.384585]
[1747266730341,0.56752877,103620.0,103610.0,0.384585]
[1747266730642,0.65447382,103620.0,103610.0,0.384585]
[1747266731244,0.66009453,103620.0,103610.0,0.384585]
[1747266732241,0.65809453,103620.0,103610.0,0.384585]
[1747266732540,0.66009453,103620.0,103610.0,0.384585]
[1747266736349,0.65447382,103620.0,103610.0,0.384585]
[1747266737350,0.66009453,103620.0,103610.0,0.384585]
[1747266738849,0.69329453,103620.0,103610.0,0.384585]
[1747266739253,0.69329453,103620.0,103610.0,0.1916018]
[1747266739550,0.72419453,103620.0,103610.0,0.1916018]
[1747266740153,0.82258268,103620.0,103610.0,0.1916018]
[1747266740652,0.85288268,103620.0,103610.0,0.1916018]
[1747266740855,0.93982773,103620.0,103610.0,0.1916018]
[1747266741454,1.09274773,103620.0,103610.0,0.1916018]
[1747266741656,1.30038773,103620.0,103610.0,0.1916018]
[1747266744655,1.30038773,103620.0,103610.0,0.1290018]
[1747266744855,1.20199958,103620.0,103610.0,0.1290018]
[1747266745157,1.36399958,103620.0,103610.0,0.1924018]
[1747266747755,1.19010948,103620.0,103610.0,0.1924018]
[1747266747947,1.27705453,103620.0,103610.0,0.1924018]
[1747266748550,1.36399958,103620.0,103610.0,0.1924018]
[1747266750356,1.36399958,103620.0,103610.0,0.1290018]
[1747266754957,1.5115101,103620.0,103610.0,0.1290018]
[1747266755153,1.33762,103620.0,103610.0,0.1290018]
[1747266755360,1.5115101,103620.0,103610.0,0.1290018]
[1747266762058,1.1507101,103620.0,103610.0,0.1290018]
[1747266762259,1.5115101,103620.0,103610.0,0.1290018]
[1747266763559,1.5115101,103620.0,103610.0,0.1593018]
[1747266768669,1.36399958,103620.0,103610.0,0.1593018]
[1747266770868,1.57159958,103620.0,103610.0,0.1593018]
[1747266773463,1.7191101,103620.0,103610.0,0.1593018]
[1747266776574,1.63216505,103620.0,103610.0,0.1593018]
[1747266776773,1.63216505,103620.0,103610.0,0.1906018]
[1747266776969,0.85612505,103620.0,103610.0,0.1906018]
[1747266777174,1.42452505,103620.0,103610.0,0.1906018]
[1747266777371,1.63212505,103620.0,103610.0,0.1906018]
[1747266780374,1.54518,103620.0,103610.0,0.1906018]
[1747266780588,1.63212505,103620.0,103610.0,0.1906018]
[1747266785076,1.54518,103620.0,103610.0,0.1906018]
[1747266785277,1.63212505,103620.0,103610.0,0.1906018]
[1747266786082,1.47012505,103620.0,103610.0,0.1906018]
[1747266787277,1.63212505,103620.0,103610.0,0.1906018]
[1747266788780,1.54518,103620.0,103610.0,0.1906018]
[1747266788981,1.63212505,103620.0,103610.0,0.1906018]
[1747266789179,1.46450434,103620.0,103610.0,0.1906018]
[1747266789387,1.01667929,103620.0,103610.0,0.383585]
[1747266789574,1.46442434,103620.0,103610.0,0.383585]
[1747266789773,1.10362434,103620.0,103610.0,0.383585]
[1747266790681,1.04242434,103620.0,103610.0,0.383585]
[1747266790880,1.04242434,103620.0,103610.0,0.1906018]
[1747266792687,0.95547929,103620.0,103610.0,0.1906018]
[1747266792889,1.04242434,103620.0,103610.0,0.1906018]
[1747266793786,1.07532434,103620.0,103610.0,0.1906018]
[1747266794785,1.10682434,103620.0,103610.0,0.1906018]
[1747266795085,1.01987929,103620.0,103610.0,0.1906018]
[1747266795286,1.10682434,103620.0,103610.0,0.1906018]
[1747266796082,1.19376939,103620.0,103610.0,0.1906018]
[1747266798089,1.04625887,103620.0,103610.0,0.1906018]
[1747266798278,1.05187958,103620.0,103610.0,0.1906018]
[1747266806992,0.63675958,103620.0,103610.0,0.1906018]
[1747266807182,1.21379958,103620.0,103610.0,0.1906018]
[1747266808388,1.12685453,103620.0,103610.0,0.1906018]
[1747266811097,0.96485453,103620.0,103610.0,0.1906018]
[1747266812098,1.12685453,103620.0,103610.0,0.1906018]
[1747266812995,1.03990948,103620.0,103610.0,0.1906018]
[1747266814506,0.96473453,103620.0,103610.0,0.1906018]
[1747266825406,0.96469453,103620.0,103610.0,0.1906018]
[1747266825622,0.54981453,103620.0,103610.0,0.383585]
[1747266825810,0.65965453,103620.0,103610.0,0.383585]
[1747266826111,0.36526948,103620.0,103610.0,0.383585]
[1747266826410,0.45221453,103620.0,103610.0,0.383585]
[1747266827106,0.45021453,103620.0,103610.0,0.383585]
[1747266828310,0.44821453,103620.0,103610.0,0.383585]
[1747266831213,0.45221453,103620.0,103610.0,0.383585]
[1747266833119,0.45221453,103620.0,103610.0,0.744385]
[1747266843114,0.48461453,103620.0,103610.0,0.744385]
[1747266846509,0.51591453,103620.0,103610.0,0.744385]
[1747266848521,0.54851453,103620.0,103610.0,0.744385]
[1747266853922,0.64695064,103620.0,103610.0,0.744385]
[1747266856022,0.56000559,103620.0,103610.0,0.744385]
[1747266856325,0.64695064,103620.0,103610.0,0.744385]
[1747266860823,0.56000559,103620.0,103610.0,0.744385]
[1747266861024,0.46370559,103620.0,103610.0,0.83133005]
[1747266861225,0.45808488,103620.0,103610.0,0.88133005]
[1747266862229,0.45408488,103620.0,103610.0,0.794385]
[1747266863931,0.41420084,103620.0,103610.0,0.794385]
[1747266864429,0.22123624,103620.0,103610.0,0.88133005]
[1747266864628,0.22123624,103620.0,103610.0,0.97784205]
[1747266864823,0.22123624,103620.0,103610.0,0.9921633]
[1747266865125,0.22123624,103620.0,103610.0,1.1541633]
[1747266865528,0.22123624,103620.0,103610.0,1.1551633]
[1747266865727,0.41420084,103620.0,103610.0,1.1551633]
[1747266865924,0.22123624,103620.0,103610.0,1.45038835]
[1747266866126,0.22123624,103620.0,103610.0,1.3634433]
[1747266866431,0.22123624,103620.0,103610.0,1.45038835]
[1747266866630,0.22123624,103620.0,103610.0,1.3634433]
[1747266866927,0.22123624,103620.0,103610.0,1.8634433]
[1747266868331,0.22685695,103620.0,103610.0,1.8634433]
[1747266868530,0.00562071,103620.0,103610.0,1.8634433]
[1747266871435,0.00562071,103620.0,103610.0,1.77649825]
[1747266871737,0.00562071,103620.0,103610.0,1.8634433]
[1747266873738,0.00562071,103620.0,103610.0,1.5026433]
[1747266873941,0.00562071,103620.0,103610.0,2.2242433]
[1747266874438,0.8733472,103630.0,103620.0,0.1929646]
[1747266874642,0.8733472,103630.0,103620.0,1.37192965]
[1747266875141,0.8733472,103630.0,103620.0,1.46844077]
[1747266875642,0.8733472,103630.0,103620.0,1.38149572]
[1747266875942,0.8733472,103630.0,103620.0,1.46844077]
[1747266879947,0.8733472,103630.0,103620.0,0.74684077]
[1747266880347,0.8733472,103630.0,103620.0,1.46844077]
[1747266884152,0.8733472,103630.0,103620.0,0.74684077]
[1747266884348,0.8733472,103630.0,103620.0,1.46844077]
[1747266884649,0.9062472,103630.0,103620.0,1.46844077]
[1747266886354,0.9363472,103630.0,103620.0,1.46844077]
[1747266887748,0.9363472,103630.0,103620.0,0.74684077]
[1747266888046,0.9363472,103630.0,103620.0,1.46844077]
[1747266890355,0.9694472,103630.0,103620.0,1.46844077]
[1747266894050,0.7765,103630.0,103620.0,1.46844077]
[1747266894856,0.969446,103630.0,103620.0,1.46844077]
[1747266896256,0.7765,103630.0,103620.0,1.46844077]
[1747266896556,0.969446,103630.0,103620.0,1.46844077]
[1747266898956,0.7765,103630.0,103620.0,1.46844077]
[1747266899155,0.7765,103630.0,103620.0,0.74684077]
[1747266899354,0.7765,103630.0,103620.0,1.46844077]
[1747266901751,0.969446,103630.0,103620.0,1.46844077]
[1747266903359,0.969446,103630.0,103620.0,0.74684077]
[1747266903558,0.969446,103630.0,103620.0,1.46844077]
[1747266904458,0.969446,103630.0,103620.0,0.74684077]
[1747266904658,0.969446,103630.0,103620.0,1.46844077]
[1747266905355,0.6804,103630.0,103620.0,1.55538582]
[1747266906057,0.6804,103630.0,103620.0,3.05538582]
[1747266906649,0.6804,103630.0,103620.0,3.55638582]
[1747266907154,0.13253611,103640.0,103620.0,3.49624612]
[1747266907358,0.10043611,103640.0,103620.0,3.42027097]
[1747266907558,0.10043611,103640.0,103620.0,3.38997097]
[1747266907859,0.13153611,103640.0,103630.0,0.27577545]
[1747266908047,0.13153611,103640.0,103630.0,0.50777545]
[1747266908449,0.19533611,103640.0,103630.0,0.6042726]
[1747266908649,0.19533611,103640.0,103630.0,0.51732755]
[1747266908950,0.19533611,103640.0,103630.0,0.6042726]
[1747266909151,0.19533611,103640.0,103630.0,0.51732755]
[1747266909350,0.19533611,103640.0,103630.0,0.6042726]
[1747266909659,0.19533611,103640.0,103630.0,1.1042726]
[1747266910261,0.0969,103640.0,103630.0,0.9422726]
[1747266910659,0.0969,103640.0,103630.0,0.95210027]
[1747266911558,0.0969,103640.0,103630.0,2.45210027]
[1747266913463,0.002,103640.0,103630.0,2.89984532]
[1747266913857,0.002,103640.0,103630.0,2.81290027]
[1747266914065,0.002,103640.0,103630.0,2.97490027]
[1747266915677,0.002,103640.0,103630.0,2.98444722]
[1747266915865,0.002,103640.0,103630.0,3.07139227]
[1747266917159,0.002,103640.0,103630.0,2.90939227]
[1747266918059,0.002,103640.0,103630.0,2.94229227]
[1747266919048,0.00762071,103640.0,103630.0,2.94229227]
[1747266921264,0.16962071,103640.0,103630.0,2.94229227]
[1747266921465,0.16962071,103640.0,103630.0,3.08961469]
[1747266922468,0.16962071,103640.0,103630.0,2.72881469]
[1747266922763,0.16962071,103640.0,103630.0,3.08961469]
[1747266924157,0.36254811,103640.0,103630.0,2.90617764]
[1747266924358,0.26552071,103640.0,103630.0,3.01593764]
[1747266924558,0.62632071,103640.0,103630.0,2.57777764]
[1747266924761,0.62632071,103640.0,103630.0,3.04833764]
[1747266925070,0.26552071,103640.0,103630.0,3.04833764]
[1747266925364,0.62632071,103640.0,103630.0,3.04833764]
[1747266926258,0.62632071,103640.0,103630.0,3.13528269]
[1747266927966,0.62632071,103640.0,103630.0,3.04833764]
[1747266928264,0.62632071,103640.0,103630.0,3.13528269]
[1747266929069,0.62632071,103640.0,103630.0,3.04833764]
[1747266929367,0.62632071,103640.0,103630.0,3.07933764]
[1747266929760,0.62632071,103640.0,103630.0,2.93201522]
[1747266931665,0.62632071,103640.0,103630.0,3.01896027]
[1747266932459,0.62632071,103640.0,103630.0,2.93201522]
[1747266932660,0.62632071,103640.0,103630.0,3.01896027]
[1747266932972,0.90619316,103640.0,103630.0,1.36861522]
[1747266933267,0.71326576,103640.0,103630.0,1.36861522]
[1747266934563,0.62632071,103640.0,103630.0,1.36861522]
[1747266936765,0.81924811,103640.0,103630.0,1.13357522]
[1747266936970,0.90619316,103640.0,103630.0,1.37225522]
[1747266937870,0.90619316,103640.0,103630.0,1.51957764]
[1747266939771,0.71326576,103640.0,103630.0,1.51957764]
[1747266941570,0.90619316,103640.0,103630.0,1.51957764]
[1747266941971,0.62632071,103640.0,103630.0,1.51957764]
[1747266942164,0.71326576,103640.0,103630.0,1.51957764]
[1747266945686,0.62632071,103640.0,103630.0,1.51957764]
[1747266945879,0.71326576,103640.0,103630.0,1.51957764]
[1747266948372,0.62632071,103640.0,103630.0,1.51957764]
[1747266948577,0.71326576,103640.0,103630.0,1.51957764]
[1747266949977,0.71326576,103640.0,103630.0,1.71600753]
[1747266952678,0.90619316,103640.0,103630.0,1.74700753]
[1747266952874,0.90619316,103640.0,103630.0,1.71600753]
[1747266953065,0.90619316,103640.0,103630.0,1.24180753]
[1747266953267,0.90619316,103640.0,103630.0,1.47804753]
[1747266953775,0.90619316,103640.0,103630.0,1.24180753]
[1747266953975,0.90619316,103640.0,103630.0,0.97804753]
[1747266958282,0.81924811,103640.0,103630.0,0.78161764]
[1747266958475,0.90619316,103640.0,103630.0,0.78161764]
[1747266959378,0.90619316,103640.0,103630.0,0.81481764]
[1747266960693,0.90619316,103640.0,103630.0,0.78161764]
[1747266960882,0.90619316,103640.0,103630.0,0.54537764]
[1747266961177,0.99313821,103640.0,103630.0,0.54537764]
[1747266961382,0.99313821,103640.0,103630.0,0.24381957]
[1747266961778,1.33963021,103640.0,103630.0,0.24381957]
[1747266962076,1.34905923,103640.0,103630.0,0.24381957]
[1747266963675,1.33963021,103640.0,103630.0,0.43676557]
[1747266964070,1.34363021,103640.0,103630.0,0.43676557]
[1747266964274,1.09663021,103640.0,103630.0,0.24381957]
[1747266964483,1.09663021,103640.0,103630.0,0.43676557]
[1747266965583,1.09663021,103640.0,103630.0,0.28944315]
[1747266966794,1.10622384,103640.0,103630.0,0.28944315]
[1747266967087,1.10622384,103640.0,103630.0,0.09649715]
[1747266972589,1.00973184,103640.0,103630.0,0.09649715]
[1747266973887,0.64893184,103640.0,103630.0,0.09649715]
[1747266974088,1.37053184,103640.0,103630.0,0.09649715]
[1747266975185,1.37053184,103640.0,103630.0,0.12939715]
[1747266979989,1.36093821,103640.0,103630.0,0.12939715]
[1747266980194,1.37042631,103640.0,103630.0,0.12939715]
[1747266980693,1.36093821,103640.0,103630.0,0.12939715]
[1747266983202,1.44788326,103640.0,103630.0,0.12939715]
[1747266983394,1.36093821,103640.0,103630.0,0.12939715]
[1747266986597,1.44788326,103640.0,103630.0,0.12939715]
[1747266986787,0.1929646,103620.0,103610.0,0.20730445]
[1747266987093,1.2504547,103620.0,103610.0,0.27240445]
[1747266987295,1.3475547,103620.0,103610.0,0.27240445]
[1747266987478,1.3475547,103620.0,103610.0,0.35457569]
[1747266988178,1.1736646,103620.0,103610.0,0.35457569]
[1747266988378,1.3475547,103620.0,103610.0,0.35457569]
[1747266988594,1.1736646,103620.0,103610.0,0.35457569]
[1747266988795,1.3475547,103620.0,103610.0,0.16159249]
[1747266989394,1.26060965,103620.0,103610.0,0.16159249]
[1747266990290,1.26260965,103620.0,103610.0,0.16159249]
[1747266990493,1.26460965,103620.0,103610.0,0.16159249]
[1747266991382,1.1776646,103620.0,103610.0,0.16159249]
[1747266991594,1.26460965,103620.0,103610.0,0.16159249]
[1747266992005,1.26460965,103620.0,103610.0,0.19429249]
[1747266996191,1.27023036,103620.0,103610.0,0.38727569]
[1747267000304,0.54863036,103620.0,103610.0,0.38727569]
[1747267000603,1.27023036,103620.0,103610.0,0.38727569]
[1747267005007,1.18328531,103620.0,103610.0,0.38727569]
[1747267005206,1.27023036,103620.0,103610.0,0.38727569]
[1747267009407,1.27023036,103620.0,103610.0,0.19429249]
[1747267009613,1.35717541,103620.0,103610.0,0.12919249]
[1747267011300,1.27023036,103620.0,103610.0,0.12919249]
[1747267015315,1.18328531,103620.0,103610.0,0.12919249]
[1747267015509,1.27023036,103620.0,103610.0,0.12919249]
[1747267015911,1.27023036,103620.0,103610.0,0.09649249]
[1747267016112,1.66892046,103620.0,103610.0,0.09649249]
[1747267016715,1.58197541,103620.0,103610.0,0.09649249]
[1747267020725,0.1929832,103610.0,103600.0,0.2255019]
[1747267021016,0.8697632,103610.0,103600.0,0.32201302]
[1747267021205,1.11870825,103610.0,103600.0,0.32201302]
[1747267022020,1.11870825,103610.0,103600.0,0.12901112]
[1747267024621,1.12070825,103610.0,103600.0,0.12901112]
[1747267025414,1.12270825,103610.0,103600.0,0.12901112]
[1747267025814,1.12832896,103610.0,103600.0,0.12901112]
[1747267026209,1.48912896,103610.0,103600.0,0.12901112]
[1747267029619,1.40218391,103610.0,103600.0,0.12901112]
[1747267029923,1.48912896,103610.0,103600.0,0.12901112]
[1747267031312,1.57607401,103610.0,103600.0,0.09651112]
[1747267031917,0.1930019,103600.0,103590.0,0.0338306]
[1747267032115,0.981992,103600.0,103590.0,0.0338306]
[1747267032317,0.981992,103600.0,103590.0,0.13035103]
[1747267034320,0.89504695,103600.0,103590.0,0.13035103]
[1747267035325,0.53424695,103600.0,103590.0,0.13035103]
[1747267035628,1.25584695,103600.0,103590.0,0.13035103]
[1747267037224,0.53424695,103600.0,103590.0,0.13035103]
[1747267037422,1.25584695,103600.0,103590.0,0.13035103]
[1747267038721,1.1689019,103600.0,103590.0,0.13035103]
[1747267038922,1.25584695,103600.0,103590.0,0.13035103]
[1747267040931,1.26146766,103600.0,103590.0,0.13035103]
[1747267043430,0.53986766,103600.0,103590.0,0.13035103]
[1747267043630,1.26146766,103600.0,103590.0,0.13035103]
[1747267044229,1.26146766,103600.0,103590.0,0.16285103]
[1747267045829,0.53986766,103600.0,103590.0,0.16285103]
[1747267046032,1.26146766,103600.0,103590.0,0.16285103]
[1747267047229,1.09946766,103600.0,103590.0,0.16285103]
[1747267048232,1.26146766,103600.0,103590.0,0.16285103]
[1747267050232,1.34841271,103600.0,103590.0,0.13035103]
[1747267050530,1.43535776,103600.0,103590.0,0.0019306]
[1747267050743,1.65531776,103600.0,103590.0,0.0019306]
[1747267050931,1.56837271,103600.0,103590.0,0.0019306]
[1747267051832,1.65531776,103600.0,103590.0,0.0019306]
[1747267052027,1.56837271,103600.0,103590.0,0.0019306]
[1747267053734,1.46231586,103600.0,103580.0,0.14732242]
[1747267053922,1.0394906,103590.0,103580.0,0.14732242]
[1747267054629,1.7198906,103590.0,103580.0,0.14732242]
[1747267055135,1.8818906,103590.0,103580.0,0.14732242]
[1747267055622,1.8818906,103590.0,103580.0,0.14832242]